fUSD/lending_fUSD_20260616
["ID","MTS","AMOUNT","RATE_DAILY","PERIOD"]
[425170612,1781549719000,-500.0,0.00038375,120]
[425170613,1781549719000,-500.0,0.00038375,120]
[425170609,1781549719000,-500.0,0.00038375,120]
[425170598,1781549719000,-500.0,0.00038375,120]
[425170611,1781549719000,-185.29,0.00038375,120]
[425170600,1781549719000,-257.5,0.00038375,120]
[425170585,1781549719000,-500.0,0.00038375,120]
[425170595,1781549719000,-500.0,0.00038375,120]
[425170615,1781549719000,-500.0,0.00038375,120]
[425170593,1781549719000,-500.0,0.00038375,120]
[425170594,1781549719000,-500.0,0.00038375,120]
[425170584,1781549719000,-500.0,0.00038375,120]
[425170588,1781549719000,-500.0,0.00038375,120]
[425170586,1781549719000,-500.0,0.00038375,120]
[425170601,1781549719000,-500.0,0.00038375,120]
[425170589,1781549719000,-500.0,0.00038375,120]
[425170590,1781549719000,-500.0,0.00038375,120]
[425170591,1781549719000,-500.0,0.00038375,120]
[425170592,1781549719000,-182.59,0.00038375,120]
[425170596,1781549719000,-500.0,0.00038375,120]
[425170599,1781549719000,-528.0,0.00038375,120]
[425170597,1781549719000,-500.0,0.00038375,120]
[425170587,1781549719000,-464.25,0.00038375,120]
[425170617,1781549719000,-500.0,0.00038375,120]
[425170641,1781549719000,-500.0,0.00038375,120]
[425170618,1781549719000,-500.0,0.00038375,120]
[425170633,1781549719000,-500.0,0.00038375,120]
[425170639,1781549719000,-500.0,0.00038375,120]
[425170640,1781549719000,-500.0,0.00038375,120]
[425170619,1781549719000,-638.94,0.00038375,120]
[425170642,1781549719000,-500.0,0.00038375,120]
[425170645,1781549719000,-500.0,0.00038375,120]
[425170634,1781549719000,-500.0,0.00038375,120]
[425170646,1781549719000,-500.0,0.00038375,120]
[425170647,1781549719000,-500.0,0.00038375,120]
[425170649,1781549719000,-500.0,0.00038375,120]
[425170648,1781549719000,-500.0,0.00038375,120]
[425170651,1781549719000,-500.0,0.00038375,120]
[425170650,1781549719000,-500.0,0.00038375,120]
[425170652,1781549719000,-27605.88594144,0.00038375,10]
[425170643,1781549719000,-500.0,0.00038375,120]
[425170637,1781549719000,-500.0,0.00038375,120]
[425170644,1781549719000,-500.0,0.00038375,120]
[425170631,1781549719000,-500.0,0.00038375,120]
[425170621,1781549719000,-500.0,0.00038375,120]
[425170638,1781549719000,-500.0,0.00038375,120]
[425170624,1781549719000,-500.0,0.00038375,120]
[425170626,1781549719000,-404.13,0.00038375,120]
[425170625,1781549719000,-500.0,0.00038375,120]
[425170622,1781549719000,-500.0,0.00038375,120]
[425170620,1781549719000,-500.0,0.00038375,120]
[425170623,1781549719000,-500.0,0.00038375,120]
[425170629,1781549719000,-500.0,0.00038375,120]
[425170628,1781549719000,-500.0,0.00038375,120]
[425170630,1781549719000,-500.0,0.00038375,120]
[425170632,1781549719000,-500.0,0.00038375,120]
[425170635,1781549719000,-500.0,0.00038375,120]
[425170636,1781549719000,-500.0,0.00038375,120]
[425170627,1781549719000,-500.0,0.00038375,120]
[425170653,1781549720000,-178.91382127,0.00013698,2]
[425170654,1781549720000,-142.41327884,0.00022,2]
[425170656,1781549720000,-581.4153289,0.00023,2]
[425170655,1781549720000,-1418.58672116,0.00022,2]
[425170659,1781549721000,-183.24,0.0002898,30]
[425170658,1781549721000,-183.24,0.00028948,7]
[425170657,1781549721000,-979.5846711,0.00023,2]
[425170660,1781549721000,-4693.16812378,0.00029,2]
[425170661,1781549721000,-400.0,0.00029,2]
[425170662,1781549721000,-183.24,0.00029011,2]
[425170666,1781549721000,-2600.45660309,0.00021615,2]
[425170663,1781549721000,-59.15236939,0.00029043,7]
[425170664,1781549721000,-223.0,9.783e-05,2]
[425170672,1781549721000,-108.68532475,0.00029043,7]
[425170671,1781549721000,-1561.44190249,0.00025,2]
[425170669,1781549721000,-1947.97638099,0.00021615,2]
[425170665,1781549721000,-1154.75249847,0.00021615,2]
[425170668,1781549721000,-300.0,0.00021615,2]
[425170670,1781549721000,-1561.0,0.00024,2]
[425170667,1781549721000,-2347.35,0.00021615,2]
[425170676,1781549723000,1213.201202,0.00029302,120]
[425170675,1781549723000,150.0,7.707e-05,2]
[425170674,1781549723000,172.33339067,0.0003011,120]
[425170673,1781549723000,2563.540227,7.945e-05,2]
[425170679,1781549724000,1185.622123,0.00029302,120]
[425170677,1781549724000,423.88566408,8.88e-05,2]
[425170678,1781549724000,496.27669064,8.88e-05,2]
[425170680,1781549725000,300.0,8.478e-05,2]
[425170681,1781549734000,150.0,7.826e-05,2]
[425170682,1781549818000,-465.5577,9.379e-05,2]
[425170684,1781549833000,-300.0,9.485e-05,2]
[425170685,1781549833000,-165.5577,9.486e-05,2]
[425170686,1781549836000,-465.5577,9.486e-05,2]
[425170687,1781549838000,257.36628799,8.879e-05,2]
[425170688,1781549838000,500.0,8.879e-05,2]
[425170689,1781549839000,-465.5577,9.486e-05,2]
[425170690,1781549840000,500.0,8.879e-05,2]
[425170691,1781549842000,-465.5577,9.486e-05,2]
[425170692,1781549856000,500.0,8.879e-05,2]
[425170693,1781549858000,-300.0,9.486e-05,2]
[425170695,1781549862000,-300.0,9.485e-05,2]
[425170696,1781549862000,-5674.87956217,9.486e-05,2]
[425170697,1781549882000,-500.0,9.485e-05,2]
[425170698,1781549921000,-363.47626046,9.485e-05,2]
[425170700,1781549974000,-172.39,9.359e-05,2]
[425170701,1781550028000,-231.0,9.483e-05,2]
[425170702,1781550081000,-500.0,9.484e-05,2]
[425170703,1781550127000,151.0,0.00027407,120]
[425170708,1781550291000,-250.0,9.485e-05,2]
[425170709,1781550345000,-150.0,9.485e-05,2]
[425170710,1781550398000,-163.55691498,9.485e-05,2]
[425170713,1781550451000,-250.0,9.485e-05,2]
[425170715,1781550505000,-160.0,9.503e-05,2]
[425170724,1781550516000,-428.26454545,9.58e-05,2]
[425170723,1781550516000,-636.34762604,9.579e-05,2]
[425170722,1781550516000,-500.0,9.579e-05,2]
[425170721,1781550516000,-193.4340429,9.579e-05,2]
[425170720,1781550516000,-306.5659571,9.579e-05,2]
[425170719,1781550516000,-500.0,9.579e-05,2]
[425170718,1781550516000,-500.0,9.579e-05,2]
[425170717,1781550516000,-500.0,9.579e-05,2]
[425170716,1781550516000,-500.0,9.579e-05,2]
[425170726,1781550540000,-291.48537557,9.579e-05,2]
[425170725,1781550540000,-500.0,9.579e-05,2]
[425170727,1781550540000,-500.0,9.579e-05,2]
[425170729,1781550540000,-975.36262959,9.58e-05,2]
[425170730,1781550540000,-1142.88418278,9.58e-05,2]
[425170728,1781550540000,-1096.37282496,9.58e-05,2]
[425170732,1781550559000,-150.0,9.579e-05,2]
[425170734,1781550565000,-616.86619303,9.579e-05,2]
[425170733,1781550565000,-500.0,9.579e-05,2]
[425170736,1781550565000,-2477.98030079,9.58e-05,2]
[425170737,1781550565000,-533.30121991,9.58e-05,2]
[425170735,1781550565000,-1361.11410776,9.58e-05,2]
[425170740,1781550590000,-668.12024966,9.58e-05,2]
[425170739,1781550590000,-2587.76553722,9.58e-05,2]
[425170738,1781550590000,-2587.76553722,9.58e-05,2]
[425170741,1781550612000,-5974.87956217,9.58e-05,2]
[425170742,1781550631000,-5974.87956217,9.58e-05,2]
[425170758,1781550633000,-393.51233074,9.58e-05,2]
[425170760,1781550633000,-820.01474309,9.58e-05,2]
[425170759,1781550633000,-42406.9715508,9.58e-05,2]
[425170761,1781550633000,-11671.05318492,9.58e-05,2]
[425170764,1781550633000,-672.09,9.58e-05,2]
[425170762,1781550633000,-88704.49073348,9.58e-05,2]
[425170765,1781550633000,-652.94776118,9.58e-05,2]
[425170766,1781550633000,-1117.69894956,9.58e-05,2]
[425170763,1781550633000,-391.88,9.58e-05,2]
[425171441,1781550649000,-9340.22,9.58e-05,2]
[425171520,1781550649000,-1320520.43048655,9.58e-05,2]
[425171523,1781550649000,-2500000.0,9.58e-05,2]
[425171526,1781550649000,-2500.0,9.58e-05,2]
[425171529,1781550649000,-160.0,9.58e-05,2]
[425171532,1781550649000,-163.55691498,9.58e-05,2]
[425171535,1781550649000,-1838.17994293,9.58e-05,2]
[425171547,1781550649000,-157.98,9.662e-05,2]
[425171541,1781550649000,-192.53039473,9.642e-05,2]
[425171544,1781550649000,-6805.22,9.642e-05,2]
[425171551,1781550649000,-704.258,9.679e-05,2]
[425171538,1781550649000,-302.28,9.63e-05,2]
[425171557,1781550649000,-33290.518,9.68e-05,2]
[425171582,1781550649000,-166.66,0.00010189,2]
[425171554,1781550649000,-7982.818,9.679e-05,2]
[425171579,1781550649000,-3064.77,0.00010027,2]
[425171585,1781550649000,-1111.1,0.00010275,2]
[425171587,1781550649000,-3064.77,0.00010278,2]
[425171576,1781550649000,-1250.53990518,0.0001,2]
[425171566,1781550649000,-763.06,9.788e-05,2]
[425171573,1781550649000,-338.83553214,0.0001,2]
[425171569,1781550649000,-2000.0,9.808e-05,2]
[425171559,1781550649000,-2000.0,9.68e-05,2]
[425171560,1781550649000,-246.9,9.684e-05,2]
[425171563,1781550649000,-1000.0,9.692e-05,2]
[425171632,1781550650000,-86485.25736306,0.00011099,2]
[425171647,1781550650000,-171.54,0.00011233,2]
[425171636,1781550650000,-84043.34252944,0.00011099,2]
[425171621,1781550650000,-3064.77,0.0001103,2]
[425171634,1781550650000,-84043.34252948,0.00011099,2]
[425171644,1781550650000,-166.66,0.00011206,2]
[425171651,1781550650000,-86485.25736306,0.00011242,2]
[425171649,1781550650000,-84043.34252944,0.00011242,2]
[425171666,1781550650000,-166.66,0.00011668,2]
[425171653,1781550650000,-500.0,0.00011248,2]
[425171655,1781550650000,-166.66,0.00011437,2]
[425171660,1781550650000,-166.66,0.00011534,2]
[425171664,1781550650000,-299.34,0.00011599,2]
[425171662,1781550650000,-433.0,0.00011591,2]
[425171671,1781550650000,-150.0,0.00011762,2]
[425171669,1781550650000,-186.77,0.00011724,2]
[425171674,1781550650000,-213.0,0.00011762,2]
[425171638,1781550650000,-84043.34252944,0.00011099,2]
[425171657,1781550650000,-500.0,0.00011522,2]
[425171642,1781550650000,-166.66,0.00011198,2]
[425171610,1781550650000,-4599.15170951,0.000109,2]
[425171625,1781550650000,-4599.15170951,0.00011073,2]
[425171676,1781550650000,-394.95765229,0.00011762,2]
[425171589,1781550650000,-58843.11400876,0.000103,2]
[425171591,1781550650000,-250.0,0.00010454,2]
[425171593,1781550650000,-166.66,0.00010525,2]
[425171606,1781550650000,-166.66,0.00010862,2]
[425171608,1781550650000,-4599.15170952,0.000109,2]
[425171595,1781550650000,-3064.77,0.00010529,2]
[425171613,1781550650000,-150.0,0.00010959,2]
[425171640,1781550650000,-150.0,0.00011122,2]
[425171599,1781550650000,-250.0,0.00010538,2]
[425171604,1781550650000,-3064.77,0.00010779,2]
[425171602,1781550650000,-271.89889709,0.000107,2]
[425171615,1781550650000,-994.94,0.00010959,2]
[425171617,1781550650000,-166.66,0.00010974,2]
[425171619,1781550650000,-8540.76740982,0.00011,2]
[425171623,1781550650000,-2000.0,0.00011034,2]
[425171627,1781550650000,-86485.25736309,0.00011099,2]
[425171629,1781550650000,-86485.25736306,0.00011099,2]
[425171597,1781550650000,-255.0,0.00010537,2]
[425171680,1781550650000,-500.0,0.00011796,2]
[425171728,1781550650000,-1250.53990517,0.00012171,2]
[425171683,1781550650000,-84043.34252944,0.00011829,2]
[425171747,1781550650000,-4599.15170951,0.00012604,2]
[425171751,1781550650000,-736.0,0.0001275,2]
[425171761,1781550650000,-315.63,0.00013202,2]
[425171763,1781550650000,-374.706698,0.00013218,2]
[425171753,1781550650000,-3010.7,0.00012767,2]
[425171755,1781550650000,-84043.34252944,0.00013003,2]
[425171759,1781550650000,-151.0,0.00013127,2]
[425171757,1781550650000,-86485.25736306,0.00013003,2]
[425171745,1781550650000,-315.63,0.00012507,2]
[425171749,1781550650000,-250.0,0.00012658,2]
[425171776,1781550650000,-200.602021,0.00013344,2]
[425171774,1781550650000,-370.413528,0.00013297,2]
[425171766,1781550650000,-183.270978,0.00013218,2]
[425171768,1781550650000,-500.0,0.00013232,2]
[425171771,1781550650000,-346.438654,0.00013297,2]
[425171770,1781550650000,-186.669632,0.00013258,2]
[425171785,1781550650000,-3959.19,0.00013485,2]
[425171781,1781550650000,-1600.0,0.00013402,2]
[425171780,1781550650000,-4599.15170951,0.00013369,2]
[425171741,1781550650000,-86485.25736306,0.00012416,2]
[425171687,1781550650000,-86485.25736306,0.00011829,2]
[425171732,1781550650000,-192.53039472,0.00012221,2]
[425171730,1781550650000,-1838.17994293,0.0001219,2]
[425171692,1781550650000,-166.66,0.00011871,2]
[425171698,1781550650000,-166.66,0.00011899,2]
[425171690,1781550650000,-4599.15170951,0.00011838,2]
[425171702,1781550650000,-1600.0,0.00011913,2]
[425171705,1781550650000,-151.0,0.00011944,2]
[425171722,1781550650000,-500.0,0.0001207,2]
[425171720,1781550650000,-151.0,0.00012,2]
[425171724,1781550650000,-1190.84909607,0.000121,2]
[425171707,1781550650000,-151.0,0.00011944,2]
[425171727,1781550650000,-166.66,0.0001213,2]
[425171713,1781550650000,-151.0,0.00012,2]
[425171717,1781550650000,-151.0,0.00012,2]
[425171787,1781550650000,-2000.0,0.00013486,2]
[425171743,1781550650000,-11401.28533883,0.00012492,2]
[425171736,1781550650000,-743.71743454,0.00012266,2]
[425171740,1781550650000,-84043.34252944,0.00012416,2]
[425171737,1781550650000,-184.39,0.00012329,2]
[425171734,1781550650000,-2000.0,0.0001226,2]
[425171711,1781550650000,-151.0,0.00012,2]
[425171858,1781550651000,-150.0,0.00013578,2]
[425171862,1781550651000,-259.20632267,0.00013578,2]
[425171860,1781550651000,-294.5526394,0.00013578,2]
[425171856,1781550651000,-150.0,0.00013576,2]
[425171837,1781550651000,-150.0,0.00013548,2]
[425171839,1781550651000,-294.5526394,0.00013548,2]
[425171833,1781550651000,-294.5526394,0.00013533,2]
[425171835,1781550651000,-150.0,0.00013545,2]
[425171866,1781550651000,-84043.34252944,0.00013591,2]
[425171854,1781550651000,-150.0,0.00013569,2]
[425171864,1781550651000,-150.0,0.00013585,2]
[425171884,1781550651000,-259.20632267,0.00013609,2]
[425171871,1781550651000,-294.5526394,0.00013594,2]
[425171873,1781550651000,-259.20632267,0.00013594,2]
[425171875,1781550651000,-150.0,0.000136,2]
[425171889,1781550651000,-150.0,0.00013618,2]
[425171886,1781550651000,-150.0,0.00013609,2]
[425171877,1781550651000,-150.0,0.00013603,2]
[425171891,1781550651000,-150.0,0.0001362,2]
[425171880,1781550651000,-150.0,0.00013608,2]
[425171882,1781550651000,-294.5526394,0.00013609,2]
[425171834,1781550651000,-259.20632267,0.00013533,2]
[425171895,1781550651000,-259.20632267,0.00013624,2]
[425171868,1781550651000,-86485.25736306,0.00013591,2]
[425171841,1781550651000,-259.20632267,0.00013548,2]
[425171824,1781550651000,-294.5526394,0.00013518,2]
[425171850,1781550651000,-259.20632267,0.00013563,2]
[425171794,1781550651000,-150.0,0.00013488,2]
[425171791,1781550651000,-150.0,0.00013488,2]
[425171792,1781550651000,-150.0,0.00013488,2]
[425171798,1781550651000,-150.0,0.00013488,2]
[425171800,1781550651000,-150.0,0.00013488,2]
[425171805,1781550651000,-150.0,0.00013488,2]
[425171812,1781550651000,-294.5526394,0.00013488,2]
[425171810,1781550651000,-204.09879041,0.00013488,2]
[425171803,1781550651000,-150.0,0.00013488,2]
[425171807,1781550651000,-150.0,0.00013488,2]
[425171815,1781550651000,-259.20632267,0.00013488,2]
[425171822,1781550651000,-259.20632267,0.00013503,2]
[425171817,1781550651000,-150.0,0.00013488,2]
[425171819,1781550651000,-150.0,0.00013488,2]
[425171821,1781550651000,-294.5526394,0.00013503,2]
[425171893,1781550651000,-294.5526394,0.00013624,2]
[425171829,1781550651000,-150.0,0.00013525,2]
[425171826,1781550651000,-259.20632267,0.00013518,2]
[425171828,1781550651000,-150.0,0.0001352,2]
[425171832,1781550651000,-150.0,0.00013532,2]
[425171843,1781550651000,-150.0,0.00013553,2]
[425171847,1781550651000,-294.5526394,0.00013563,2]
[425171831,1781550651000,-150.0,0.00013528,2]
[425171845,1781550651000,-150.0,0.00013563,2]
[425171897,1781550651000,-3959.19,0.00013632,2]
[425171852,1781550651000,-3959.19,0.00013568,2]
[425171900,1781550651000,-150.0,0.00013638,2]
[425171953,1781550651000,-647.74685789,0.00013698,2]
[425171970,1781550651000,-500.0,0.00013698,2]
[425171964,1781550651000,-500.0,0.00013698,2]
[425171962,1781550651000,-504.03050373,0.00013698,2]
[425171966,1781550651000,-500.0,0.00013698,2]
[425171968,1781550651000,-500.0,0.00013698,2]
[425171972,1781550651000,-500.0,0.00013698,2]
[425171974,1781550651000,-500.0,0.00013698,2]
[425171978,1781550651000,-500.0,0.00013698,2]
[425171981,1781550651000,-250.23937058,0.00013698,2]
[425171983,1781550651000,-500.0,0.00013698,2]
[425171957,1781550651000,-500.0,0.00013698,2]
[425171987,1781550651000,-500.0,0.00013698,2]
[425171992,1781550651000,-500.0,0.00013698,2]
[425171989,1781550651000,-500.0,0.00013698,2]
[425171994,1781550651000,-500.0,0.00013698,2]
[425171996,1781550651000,-819.72,0.00013698,2]
[425171998,1781550651000,-819.72,0.00013698,2]
[425172000,1781550651000,-819.72,0.00013698,2]
[425172002,1781550651000,-819.72,0.00013698,2]
[425172004,1781550651000,-819.72,0.00013698,2]
[425172009,1781550651000,-819.72,0.00013698,2]
[425172006,1781550651000,-819.72,0.00013698,2]
[425171906,1781550651000,-150.0,0.0001365,2]
[425171985,1781550651000,-500.0,0.00013698,2]
[425171959,1781550651000,-506.73162818,0.00013698,2]
[425171976,1781550651000,-500.0,0.00013698,2]
[425171955,1781550651000,-505.47463781,0.00013698,2]
[425171902,1781550651000,-294.5526394,0.00013639,2]
[425171951,1781550651000,-500.0,0.00013698,2]
[425171904,1781550651000,-259.20632267,0.00013639,2]
[425171909,1781550651000,-150.0,0.00013651,2]
[425171911,1781550651000,-294.5526394,0.00013654,2]
[425171923,1781550651000,-294.5526394,0.00013669,2]
[425171915,1781550651000,-150.0,0.00013661,2]
[425171919,1781550651000,-150.0,0.00013668,2]
[425171921,1781550651000,-150.0,0.00013669,2]
[425171912,1781550651000,-259.20632267,0.00013654,2]
[425171937,1781550651000,-150.0,0.0001369,2]
[425171935,1781550651000,-3959.19,0.00013685,2]
[425171917,1781550651000,-150.0,0.00013664,2]
[425171927,1781550651000,-150.0,0.00013675,2]
[425171949,1781550651000,-504.10545625,0.00013698,2]
[425171941,1781550651000,-500.0,0.00013698,2]
[425171931,1781550651000,-294.5526394,0.00013684,2]
[425171945,1781550651000,-500.0,0.00013698,2]
[425171943,1781550651000,-500.0,0.00013698,2]
[425171933,1781550651000,-259.20632267,0.00013684,2]
[425171947,1781550651000,-500.0,0.00013698,2]
[425171925,1781550651000,-259.20632267,0.00013669,2]
[425171939,1781550651000,-502.33937065,0.00013698,2]
[425171929,1781550651000,-150.0,0.00013683,2]
[425172076,1781550652000,-500.0,0.00013698,2]
[425172086,1781550652000,-500.0,0.00013698,2]
[425172080,1781550652000,-259.40265933,0.00013698,2]
[425172078,1781550652000,-500.0,0.00013698,2]
[425172082,1781550652000,-500.0,0.00013698,2]
[425172091,1781550652000,-500.0,0.00013698,2]
[425172074,1781550652000,-776.33,0.00013698,2]
[425172094,1781550652000,-500.0,0.00013698,2]
[425172084,1781550652000,-500.0,0.00013698,2]
[425172089,1781550652000,-500.0,0.00013698,2]
[425172096,1781550652000,-500.0,0.00013698,2]
[425172098,1781550652000,-500.0,0.00013698,2]
[425172127,1781550652000,-154.77,0.00013698,2]
[425172103,1781550652000,-500.0,0.00013698,2]
[425172107,1781550652000,-500.0,0.00013698,2]
[425172118,1781550652000,-500.0,0.00013698,2]
[425172105,1781550652000,-500.0,0.00013698,2]
[425172109,1781550652000,-360.31710337,0.00013698,2]
[425172120,1781550652000,-500.0,0.00013698,2]
[425172111,1781550652000,-502.62322906,0.00013698,2]
[425172113,1781550652000,-500.0,0.00013698,2]
[425172123,1781550652000,-500.0,0.00013698,2]
[425172115,1781550652000,-500.0,0.00013698,2]
[425172071,1781550652000,-776.33,0.00013698,2]
[425172132,1781550652000,-207.98190929,0.00013698,2]
[425172100,1781550652000,-500.0,0.00013698,2]
[425172061,1781550652000,-776.33,0.00013698,2]
[425172018,1781550652000,-819.72,0.00013698,2]
[425172063,1781550652000,-776.33,0.00013698,2]
[425172129,1781550652000,-500.0,0.00013698,2]
[425172011,1781550652000,-819.72,0.00013698,2]
[425172020,1781550652000,-819.72,0.00013698,2]
[425172015,1781550652000,-819.72,0.00013698,2]
[425172013,1781550652000,-819.72,0.00013698,2]
[425172022,1781550652000,-819.72,0.00013698,2]
[425172036,1781550652000,-500.0,0.00013698,2]
[425172024,1781550652000,-819.72,0.00013698,2]
[425172028,1781550652000,-819.72,0.00013698,2]
[425172026,1781550652000,-819.72,0.00013698,2]
[425172030,1781550652000,-819.72,0.00013698,2]
[425172041,1781550652000,-493.98862473,0.00013698,2]
[425172065,1781550652000,-776.33,0.00013698,2]
[425172039,1781550652000,-500.0,0.00013698,2]
[425172043,1781550652000,-776.33,0.00013698,2]
[425172034,1781550652000,-500.0,0.00013698,2]
[425172045,1781550652000,-776.33,0.00013698,2]
[425172047,1781550652000,-776.33,0.00013698,2]
[425172051,1781550652000,-776.33,0.00013698,2]
[425172049,1781550652000,-776.33,0.00013698,2]
[425172056,1781550652000,-776.33,0.00013698,2]
[425172067,1781550652000,-776.33,0.00013698,2]
[425172055,1781550652000,-776.33,0.00013698,2]
[425172053,1781550652000,-776.33,0.00013698,2]
[425172058,1781550652000,-776.33,0.00013698,2]
[425172069,1781550652000,-776.33,0.00013698,2]
[425172032,1781550652000,-500.0,0.00013698,2]
[425172125,1781550652000,-500.0,0.00013698,2]
[425172206,1781550652000,-500.0,0.00013698,2]
[425172141,1781550652000,-500.0,0.00013698,2]
[425172198,1781550652000,-500.0,0.00013698,2]
[425172207,1781550652000,-500.0,0.00013698,2]
[425172209,1781550652000,-500.0,0.00013698,2]
[425172203,1781550652000,-500.0,0.00013698,2]
[425172200,1781550652000,-500.0,0.00013698,2]
[425172208,1781550652000,-500.0,0.00013698,2]
[425172205,1781550652000,-500.0,0.00013698,2]
[425172199,1781550652000,-500.0,0.00013698,2]
[425172204,1781550652000,-500.0,0.00013698,2]
[425172201,1781550652000,-500.0,0.00013698,2]
[425172202,1781550652000,-500.0,0.00013698,2]
[425172221,1781550652000,-500.0,0.00013698,2]
[425172211,1781550652000,-500.0,0.00013698,2]
[425172222,1781550652000,-500.0,0.00013698,2]
[425172212,1781550652000,-500.0,0.00013698,2]
[425172210,1781550652000,-500.0,0.00013698,2]
[425172213,1781550652000,-500.0,0.00013698,2]
[425172217,1781550652000,-500.0,0.00013698,2]
[425172214,1781550652000,-500.0,0.00013698,2]
[425172218,1781550652000,-500.0,0.00013698,2]
[425172219,1781550652000,-500.0,0.00013698,2]
[425172220,1781550652000,-580.14325796,0.00013698,2]
[425172223,1781550652000,-500.0,0.00013698,2]
[425172136,1781550652000,-500.0,0.00013698,2]
[425172225,1781550652000,-500.0,0.00013698,2]
[425172196,1781550652000,-500.0,0.00013698,2]
[425172194,1781550652000,-500.0,0.00013698,2]
[425172224,1781550652000,-500.0,0.00013698,2]
[425172184,1781550652000,-500.0,0.00013698,2]
[425172186,1781550652000,-500.0,0.00013698,2]
[425172134,1781550652000,-500.0,0.00013698,2]
[425172146,1781550652000,-500.0,0.00013698,2]
[425172139,1781550652000,-500.0,0.00013698,2]
[425172148,1781550652000,-500.0,0.00013698,2]
[425172150,1781550652000,-500.0,0.00013698,2]
[425172161,1781550652000,-500.0,0.00013698,2]
[425172168,1781550652000,-500.0,0.00013698,2]
[425172170,1781550652000,-500.0,0.00013698,2]
[425172163,1781550652000,-500.0,0.00013698,2]
[425172156,1781550652000,-500.0,0.00013698,2]
[425172152,1781550652000,-500.0,0.00013698,2]
[425172166,1781550652000,-500.0,0.00013698,2]
[425172144,1781550652000,-500.0,0.00013698,2]
[425172172,1781550652000,-500.0,0.00013698,2]
[425172159,1781550652000,-500.0,0.00013698,2]
[425172174,1781550652000,-500.0,0.00013698,2]
[425172177,1781550652000,-500.0,0.00013698,2]
[425172176,1781550652000,-500.0,0.00013698,2]
[425172182,1781550652000,-500.0,0.00013698,2]
[425172192,1781550652000,-500.0,0.00013698,2]
[425172179,1781550652000,-500.0,0.00013698,2]
[425172154,1781550652000,-500.0,0.00013698,2]
[425172178,1781550652000,-500.0,0.00013698,2]
[425172190,1781550652000,-500.0,0.00013698,2]
[425172180,1781550652000,-500.0,0.00013698,2]
[425172188,1781550652000,-500.0,0.00013698,2]
[425172264,1781550653000,-500.0,0.00013698,2]
[425172267,1781550653000,-500.0,0.00013698,2]
[425172266,1781550653000,-500.0,0.00013698,2]
[425172268,1781550653000,-500.0,0.00013698,2]
[425172256,1781550653000,-500.0,0.00013698,2]
[425172259,1781550653000,-500.0,0.00013698,2]
[425172260,1781550653000,-500.0,0.00013698,2]
[425172261,1781550653000,-500.0,0.00013698,2]
[425172257,1781550653000,-500.0,0.00013698,2]
[425172265,1781550653000,-500.0,0.00013698,2]
[425172270,1781550653000,-500.0,0.00013698,2]
[425172283,1781550653000,-500.0,0.00013698,2]
[425172274,1781550653000,-500.0,0.00013698,2]
[425172269,1781550653000,-500.0,0.00013698,2]
[425172273,1781550653000,-500.0,0.00013698,2]
[425172275,1781550653000,-500.0,0.00013698,2]
[425172279,1781550653000,-500.0,0.00013698,2]
[425172282,1781550653000,-500.0,0.00013698,2]
[425172276,1781550653000,-500.0,0.00013698,2]
[425172281,1781550653000,-500.0,0.00013698,2]
[425172280,1781550653000,-500.0,0.00013698,2]